{"text_format":"1","workbook":"xlsx","n_sheets":3,"sheets":["list","تقرير تفصيلى","يومية المقاولين"],"not_rendered":{"charts":0,"images":0,"macros":1,"external_links":0,"defined_names":6,"comments":1,"pivot_tables":0},"unopened":[],"bounds":{"document_bytes":16777216,"sheet_cells":100000,"rows_first":2000,"rows_last":500,"rows_between":2000,"halvings":0,"cell_chars":16384,"cell_head_chars":4096},"cells_cut":0,"cells_raw":0,"read":"whole","date_system":"1900"}

{"sheet":"list","index":0,"n_rows":10,"n_cols":5,"rows_kept":10,"cut":false,"hidden":false,"merged":[]}
[]
[]
["المقاول",null,"مكان الشغل ",null,"الوحدة"]
["احمد حمدان",null,"13 مشتل 13 فدان",null,"ساغة"]
["ام حمزة",null,"13 مزرعة 13 فدان",null,"فدان"]
["احمد شبل",null,null,null,"يومية"]
[null,null,null,null,"برنيكة"]
[null,null,null,null,"خط"]
[null,null,null,null,"نقلة"]
[null,null,null,null,"وصل"]

{"sheet":"تقرير تفصيلى","index":1,"n_rows":12,"n_cols":25,"rows_kept":12,"cut":false,"hidden":false,"merged":[[8,23,9,23],[8,24,9,24],[8,18,9,18],[8,19,9,19],[8,20,9,20],[8,21,9,21],[8,22,9,22],[8,13,9,13],[8,14,9,14],[8,15,9,15],[8,16,9,16],[8,17,9,17],[8,12,9,12],[8,11,9,11],[4,4,5,10],[8,1,9,1],[8,2,9,2],[8,3,9,3],[8,4,9,4],[8,5,9,5],[8,6,9,6],[8,7,9,7],[8,8,9,8],[8,9,8,10]]}
[]
[null,"التاريخ","التاريخ","مكان الشغل","اسم المقاول","العدد","القيمة","الواصل","الباقى","عدد اليومية"]
[null,{"$f":"\">=\"&C6","v":">=45778"},{"$f":"\"<=\"&D6","v":"<=45779"},null,"احمد حمدان",{"$f":"SUBTOTAL(9,$G$10:$G$12000)","v":42},{"$f":"SUBTOTAL(9,$I$10:$I$1600)","v":2520},{"$f":"SUBTOTAL(9,$M$11:$M$150000)","v":0},{"$f":"+G3-H3","v":2520},"عدد الاشراف"]
[null,null,null,null,null,null,null,null,null,"الاضافى"]
[null,null,"من تاريخ","الى تاريخ","تقرير تفصيلى للمقاولين2025"]
[null,null,"2025-05-01","2025-05-02"]
[null,0,{"$f":"+C6","v":"2025-05-01"},{"$f":"+D6","v":"2025-05-02"},null,null,null,{"$f":"SUBTOTAL(9,H$10:H$1200)","v":60},{"$f":"SUBTOTAL(9,I$10:I$1200)","v":2520},{"$f":"SUBTOTAL(9,J$10:J$1200)","v":3},14,0]
[]
[null,"التاريخ","اليوم","مكان الشغل","اسم المقاول","الوحدة","العدد","اليومية","القيمة","زراعة مشتل",null,"فرز شتلة","حشائش مشتل","رش","تخريج","تسطير","ملش",1,1,1,1,1,1,"اضافى","واصل"]
[null,null,null,null,null,null,null,null,null,"عدد الساعات","عدد العمالة "]
[1,"2025-05-01","السبت","13 مشتل 13 فدان","احمد حمدان","ساعة ",42,60,2520,3,14]
[2,"2025-05-02","الأحد","13 مشتل 13 فدان","احمد حمدان","وصل",0,0,0,0,0,0,0,0,0,0,0,0,0,0,0,0,0,0,5000]

{"sheet":"يومية المقاولين","index":2,"n_rows":975,"n_cols":29,"rows_kept":975,"cut":false,"hidden":false,"merged":[[5,22,6,22],[5,23,6,23],[5,24,6,24],[5,16,6,16],[5,17,6,17],[5,18,6,18],[5,19,6,19],[5,20,6,20],[5,21,6,21],[5,1,6,1],[5,11,6,11],[5,12,6,12],[5,13,6,13],[5,14,6,14],[5,15,6,15],[5,9,5,10],[5,2,6,2],[5,3,6,3],[5,4,6,4],[5,5,6,5],[5,6,6,6],[5,7,6,7],[5,8,6,8]]}
[null,null,0,{"$f":"SUBTOTAL(9,D8:D130001)","v":0},{"$f":"SUBTOTAL(9,E8:E130001)","v":0},null,{"$f":"SUBTOTAL(9,G8:G130001)","v":66},null,{"$f":"SUBTOTAL(9,I8:I130001)","v":3960},null,null,{"$f":"SUBTOTAL(9,L8:L130001)","v":0},null,null,{"$f":"SUBTOTAL(9,O8:O130001)","v":0},null,null,null,null,null,null,null,{"$f":"SUBTOTAL(9,W8:W130001)","v":0},null,{"$f":"SUBTOTAL(9,Y8:Y130001)","v":5000},null,"أبو حمزة","احمد حمدان"]
[]
[null,"بيان يومى تفصيلى  المقاولين  والمزرعة 2025"]
[null,null,null,null,"الاجمالى الكلى"]
[]
[null,"التاريخ","اليوم","مكان الشغل","اسم المقاول","الوحدة","العدد","اليومية","القيمة","زراعة مشتل",null,"فرز شتلة","حشائش مشتل","رش","تخريج","تسطير","ملش",1,1,1,1,1,1,"اضافى","واصل"]
[null,null,null,null,null,null,null,null,null,"عدد الساعات","عدد العمالة "]
[null,"2025-05-01","السبت","13 مشتل 13 فدان","ام حمزة","ساعة ",{"$f":"+J8*K8","v":24},60,{"$f":"+G8*H8","v":1440},3,8]
[null,"2025-05-01","السبت","13 مشتل 13 فدان","احمد حمدان","ساعة ",{"$f":"+J9*K9","v":42},60,{"$f":"+G9*H9","v":2520},3,14]
[null,"2025-05-02","الأحد","13 مشتل 13 فدان","احمد حمدان","وصل",0,0,{"$f":"+G10*H10","v":0},0,0,0,0,0,0,0,0,0,0,0,0,0,0,0,5000]
[null,null,"الأحد",null,null,null,null,null,0]
[null,null,"الإثنين",null,null,null,null,null,0]
[null,null,"الإثنين",null,null,null,null,null,0]
[null,null,"الثلاثاء",null,null,null,null,null,0]
[null,null,"الثلاثاء",null,null,null,null,null,0]
[null,null,"الأربعاء",null,null,null,null,null,0]
[null,null,"الأربعاء",null,null,null,null,null,0]
[null,null,"الخميس",null,null,null,null,null,0]
[null,null,"الخميس",null,null,null,null,null,0]
[null,null,"الجمعة",null,null,null,null,null,0]
[null,null,"الجمعة",null,null,null,null,null,0]
[null,null,"السبت",null,null,null,null,null,0]
[null,null,"السبت",null,null,null,null,null,0]
[null,null,"الأحد",null,null,null,null,null,0]
[null,null,"الأحد",null,null,null,null,null,0]
[null,null,"الإثنين",null,null,null,null,null,0]
[null,null,"الإثنين",null,null,null,null,null,0]
[null,null,"الثلاثاء",null,null,null,null,null,0]
[null,null,"الثلاثاء",null,null,null,null,null,0]
[null,null,"الأربعاء",null,null,null,null,null,0]
[null,null,"الخميس",null,null,null,null,null,0]
[null,null,"الجمعة",null,null,null,null,null,0]
[null,null,"السبت",null,null,null,null,null,0]
[null,null,"الأحد",null,null,null,null,null,0]
[null,null,"الإثنين",null,null,null,null,null,0]
[null,null,"الثلاثاء",null,null,null,null,null,0]
[null,null,"الأربعاء",null,null,null,null,null,0]
[null,null,"الخميس",null,null,null,null,null,0]
[null,null,"الجمعة",null,null,null,null,null,0]
[null,null,"السبت",null,null,null,null,null,0]
[null,null,"الأحد",null,null,null,null,null,0]
[null,null,"الإثنين",null,null,null,null,null,0]
[null,null,"الثلاثاء",null,null,null,null,null,0]
[null,null,"الأربعاء",null,null,null,null,null,0]
[null,null,"الخميس",null,null,null,null,null,0]
[null,null,"الجمعة",null,null,null,null,null,0]
[null,null,"السبت",null,null,null,null,null,0]
[null,null,"الأحد",null,null,null,null,null,0]
[null,null,"الإثنين",null,null,null,null,null,0]
[null,null,"الثلاثاء",null,null,null,null,null,0]
[null,null,"الأربعاء",null,null,null,null,null,0]
[null,null,"الخميس",null,null,null,null,null,0]
[null,null,"الجمعة",null,null,null,null,null,0]
[null,null,"السبت",null,null,null,null,null,0]
[null,null,"الأحد",null,null,null,null,null,0]
[null,null,"الإثنين",null,null,null,null,null,0]
[null,null,"الثلاثاء",null,null,null,null,null,0]
[null,null,"الأربعاء",null,null,null,null,null,0]
[null,null,"الخميس",null,null,null,null,null,0]
[null,null,"الجمعة",null,null,null,null,null,0]
[null,null,"السبت",null,null,null,null,null,0]
[null,null,"الأحد",null,null,null,null,null,0]
[null,null,"الإثنين",null,null,null,null,null,0]
[null,null,"الثلاثاء",null,null,null,null,null,0]
[null,null,"الأربعاء",null,null,null,null,null,0]
[null,null,"الأربعاء",null,null,null,null,null,0]
[null,null,"الأربعاء",null,null,null,null,null,0]
[null,null,"الأربعاء",null,null,null,null,null,0]
[null,null,"الأربعاء",null,null,null,null,null,0]
[null,null,"الأربعاء",null,null,null,null,null,0]
[null,null,"الأربعاء",null,null,null,null,null,0]
[null,null,"الأربعاء",null,null,null,null,null,0]
[null,null,"الأربعاء",null,null,null,null,null,{"$f":"+G73*H73","v":0}]
[null,null,"الأربعاء",null,null,null,null,null,0]
[null,null,"الأربعاء",null,null,null,null,null,0]
[null,null,"الأربعاء",null,null,null,null,null,0]
[null,null,"الأربعاء",null,null,null,null,null,0]
[null,null,"الأربعاء",null,null,null,null,null,0]
[null,null,"الأربعاء",null,null,null,null,null,0]
[null,null,"الأربعاء",null,null,null,null,null,0]
[null,null,"الأربعاء",null,null,null,null,null,0]
[null,null,"الأربعاء",null,null,null,null,null,0]
[null,null,"الأربعاء",null,null,null,null,null,0]
[null,null,"الأربعاء",null,null,null,null,null,0]
[null,null,"الأربعاء",null,null,null,null,null,0]
[null,null,"الأربعاء",null,null,null,null,null,0]
[null,null,"الأربعاء",null,null,null,null,null,0]
[null,null,"الأربعاء",null,null,null,null,null,0]
[null,null,"الأربعاء",null,null,null,null,null,0]
[null,null,"الأربعاء",null,null,null,null,null,0]
[null,null,"الأربعاء",null,null,null,null,null,0]
[null,null,"الأربعاء",null,null,null,null,null,0]
[null,null,"الأربعاء",null,null,null,null,null,0]
[null,null,"الأربعاء",null,null,null,null,null,0]
[null,null,"الأربعاء",null,null,null,null,null,0]
[null,null,"الأربعاء",null,null,null,null,null,0]
[null,null,"الخميس",null,null,null,null,null,0]
[null,null,"الخميس",null,null,null,null,null,0]
[null,null,"السبت",null,null,null,null,null,0]
[null,null,"السبت",null,null,null,null,null,0]
[null,null,"الأحد",null,null,null,null,null,0]
[null,null,"الأحد",null,null,null,null,null,0]
[null,null,"الإثنين",null,null,null,null,null,0]
[null,null,"الإثنين",null,null,null,null,null,0]
[null,null,"الثلاثاء",null,null,null,null,null,0]
[null,null,"الثلاثاء",null,null,null,null,null,0]
[null,null,"الأربعاء",null,null,null,null,null,0]
[null,null,"الأربعاء",null,null,null,null,null,0]
[null,null,"الخميس",null,null,null,null,null,0]
[null,null,"الخميس",null,null,null,null,null,0]
[null,null,"الجمعة",null,null,null,null,null,0]
[null,null,"الجمعة",null,null,null,null,null,0]
[null,null,"السبت",null,null,null,null,null,0]
[null,null,"السبت",null,null,null,null,null,0]
[null,null,"الأحد",null,null,null,null,null,0]
[null,null,"الأحد",null,null,null,null,null,0]
[null,null,"الإثنين",null,null,null,null,null,0]
[null,null,"الإثنين",null,null,null,null,null,0]
[null,null,"الثلاثاء",null,null,null,null,null,0]
[null,null,"الثلاثاء",null,null,null,null,null,0]
[null,null,"الأربعاء",null,null,null,null,null,0]
[null,null,"الأربعاء",null,null,null,null,null,0]
[null,null,"الخميس",null,null,null,null,null,0]
[null,null,"الخميس",null,null,null,null,null,0]
[null,null,"الجمعة",null,null,null,null,null,0]
[null,null,"الجمعة",null,null,null,null,null,0]
[null,null,"السبت",null,null,null,null,null,0]
[null,null,"السبت",null,null,null,null,null,0]
[null,null,"الأحد",null,null,null,null,null,0]
[null,null,"الأحد",null,null,null,null,null,0]
[null,null,"الإثنين",null,null,null,null,null,0]
[null,null,"الإثنين",null,null,null,null,null,0]
[null,null,"الإثنين",null,null,null,null,null,0]
[null,null,"الثلاثاء",null,null,null,null,null,0]
[null,null,"الثلاثاء",null,null,null,null,null,0]
[null,null,"الثلاثاء",null,null,null,null,null,0]
[null,null,"الأربعاء",null,null,null,null,null,{"$f":"+G137*H137","v":0}]
[null,null,"الأربعاء",null,null,null,null,null,0]
[null,null,"الأربعاء",null,null,null,null,null,0]
[null,null,"الخميس",null,null,null,null,null,0,null,null,null,null,null,null,null,null,null,null,null,null,null,null,null,null,null,{"$f":"40250+1882.4","v":42132.4}]
[null,null,"الخميس",null,null,null,null,null,0,null,null,null,null,null,null,null,null,null,null,null,null,null,null,null,null,null,40100,{"$f":"+AA140-AA141","v":2032.4000000000015},{"$f":"+AB141/230-W142","v":8.8365217391304416}]
[null,null,"الخميس",null,null,null,null,null,0,null,null,null,null,null,null,null,null,null,null,null,null,null,null,null,null,null,{"$f":"+H142+H143","v":0}]
[null,null,"الخميس",null,null,null,null,null,0]
[null,null,"الخميس",null,null,null,null,null,0,null,null,null,null,null,null,null,null,null,null,null,null,null,null,null,null,null,{"$f":"+AA142+AA143","v":0}]
[null,null,"الجمعة",null,null,null,null,null,0]
[null,null,"الجمعة",null,null,null,null,null,0]
[null,null,"السبت",null,null,null,null,null,0]
[null,null,"السبت",null,null,null,null,null,0]
[null,null,"الأحد",null,null,null,null,null,0]
[null,null,"الأحد",null,null,null,null,null,0]
[null,null,"الأحد",null,null,null,null,null,0]
[null,null,"الإثنين",null,null,null,null,null,0]
[null,null,"الإثنين",null,null,null,null,null,0]
[null,null,"الثلاثاء",null,null,null,null,null,0]
[null,null,"الثلاثاء",null,null,null,null,null,0]
[null,null,"الثلاثاء",null,null,null,null,null,0]
[null,null,"الأربعاء",null,null,null,null,null,0]
[null,null,"الأربعاء",null,null,null,null,null,0]
[null,null,"الأربعاء",null,null,null,null,null,0]
[null,null,"الخميس",null,null,null,null,null,0]
[null,null,"الخميس",null,null,null,null,null,0]
[null,null,"الخميس",null,null,null,null,null,0]
[null,null,"الجمعة",null,null,null,null,null,0]
[null,null,"الجمعة",null,null,null,null,null,0]
[null,null,"الجمعة",null,null,null,null,null,0]
[null,null,"السبت",null,null,null,null,null,0]
[null,null,"السبت",null,null,null,null,null,0]
[null,null,"السبت",null,null,null,null,null,0]
[null,null,"السبت",null,null,null,null,null,0]
[null,null,"الأحد",null,null,null,null,null,0]
[null,null,"الأحد",null,null,null,null,null,0]
[null,null,{"$f":"+B172","v":"00:00:00"},null,null,null,null,null,0]
[null,null,{"$f":"+B173","v":"00:00:00"},null,null,null,null,null,0]
[null,null,"00:00:00",null,null,null,null,null,0]
[null,null,"00:00:00",null,null,null,null,null,0]
[null,null,"00:00:00",null,null,null,null,null,0]
[null,null,"00:00:00",null,null,null,null,null,0]
[null,null,"00:00:00",null,null,null,null,null,0]
[null,null,"00:00:00",null,null,null,null,null,0]
[null,null,"00:00:00",null,null,null,null,null,0]
[null,null,"00:00:00",null,null,null,null,null,0]
[null,null,"00:00:00",null,null,null,null,null,0]
[null,null,"00:00:00",null,null,null,null,null,0]
[null,null,"00:00:00",null,null,null,null,null,0]
[null,null,"00:00:00",null,null,null,null,null,0]
[null,null,"00:00:00",null,null,null,null,null,0]
[null,null,"00:00:00",null,null,null,null,null,0]
[null,null,"00:00:00",null,null,null,null,null,0]
[null,null,"00:00:00",null,null,null,null,null,0]
[null,null,"00:00:00",null,null,null,null,null,0]
[null,null,"00:00:00",null,null,null,null,null,0]
[null,null,"00:00:00",null,null,null,null,null,0]
[null,null,"00:00:00",null,null,null,null,null,0]
[null,null,"00:00:00",null,null,null,null,null,0]
[null,null,"00:00:00",null,null,null,null,null,0]
[null,null,"00:00:00",null,null,null,null,null,0]
[null,null,"00:00:00",null,null,null,null,null,0]
[null,null,"00:00:00",null,null,null,null,null,0]
[null,null,"00:00:00",null,null,null,null,null,0]
[null,null,"00:00:00",null,null,null,null,null,0]
[null,null,"00:00:00",null,null,null,null,null,{"$f":"+G201*H201","v":0}]
[null,null,"00:00:00",null,null,null,null,null,0]
[null,null,"00:00:00",null,null,null,null,null,0]
[null,null,"00:00:00",null,null,null,null,null,0]
[null,null,"00:00:00",null,null,null,null,null,0]
[null,null,"00:00:00",null,null,null,null,null,0]
[null,null,"00:00:00",null,null,null,null,null,0]
[null,null,"00:00:00",null,null,null,null,null,0]
[null,null,"00:00:00",null,null,null,null,null,0]
[null,null,"00:00:00",null,null,null,null,null,0]
[null,null,"00:00:00",null,null,null,null,null,0]
[null,null,"00:00:00",null,null,null,null,null,0]
[null,null,"00:00:00",null,null,null,null,null,0]
[null,null,"00:00:00",null,null,null,null,null,0]
[null,null,"00:00:00",null,null,null,null,null,0]
[null,null,"00:00:00",null,null,null,null,null,0]
[null,null,"00:00:00",null,null,null,null,null,0]
[null,null,"00:00:00",null,null,null,null,null,0]
[null,null,"00:00:00",null,null,null,null,null,0]
[null,null,"00:00:00",null,null,null,null,null,0]
[null,null,"00:00:00",null,null,null,null,null,0]
[null,null,"00:00:00",null,null,null,null,null,0]
[null,null,"00:00:00",null,null,null,null,null,0]
[null,null,"00:00:00",null,null,null,null,null,0]
[null,null,"00:00:00",null,null,null,null,null,0]
[null,null,"00:00:00",null,null,null,null,null,0]
[null,null,"00:00:00",null,null,null,null,null,0]
[null,null,"00:00:00",null,null,null,null,null,0]
[null,null,"00:00:00",null,null,null,null,null,0]
[null,null,"00:00:00",null,null,null,null,null,0]
[null,null,"00:00:00",null,null,null,null,null,0]
[null,null,"00:00:00",null,null,null,null,null,0]
[null,null,"00:00:00",null,null,null,null,null,0]
[null,null,{"$f":"+B234","v":"00:00:00"},null,null,null,null,null,0]
[null,null,"00:00:00",null,null,null,null,null,0]
[null,null,"00:00:00",null,null,null,null,null,0]
[null,null,"00:00:00",null,null,null,null,null,0]
[null,null,"00:00:00",null,null,null,null,null,0]
[null,null,"00:00:00",null,null,null,null,null,0]
[null,null,"00:00:00",null,null,null,null,null,0]
[null,null,"00:00:00",null,null,null,null,null,0]
[null,null,"00:00:00",null,null,null,null,null,0]
[null,null,"00:00:00",null,null,null,null,null,0]
[null,null,"00:00:00",null,null,null,null,null,0]
[null,null,"00:00:00",null,null,null,null,null,0]
[null,null,"00:00:00",null,null,null,null,null,0]
[null,null,"00:00:00",null,null,null,null,null,0]
[null,null,"00:00:00",null,null,null,null,null,0]
[null,null,"00:00:00",null,null,null,null,null,0]
[null,null,"00:00:00",null,null,null,null,null,0]
[null,null,"00:00:00",null,null,null,null,null,0]
[null,null,"00:00:00",null,null,null,null,null,0]
[null,null,"00:00:00",null,null,null,null,null,0]
[null,null,"00:00:00",null,null,null,null,null,0]
[null,null,"00:00:00",null,null,null,null,null,0]
[null,null,"00:00:00",null,null,null,null,null,0]
[null,null,"00:00:00",null,null,null,null,null,0]
[null,null,"00:00:00",null,null,null,null,null,0]
[null,null,"00:00:00",null,null,null,null,null,0]
[null,null,"00:00:00",null,null,null,null,null,0]
[null,null,"00:00:00",null,null,null,null,null,0]
[null,null,"00:00:00",null,null,null,null,null,0]
[null,null,"00:00:00",null,null,null,null,null,0]
[null,null,"00:00:00",null,null,null,null,null,0]
[null,null,"00:00:00",null,null,null,null,null,{"$f":"+G265*H265","v":0}]
[null,null,"00:00:00",null,null,null,null,null,0]
[null,null,"00:00:00",null,null,null,null,null,0]
[null,null,"00:00:00",null,null,null,null,null,0]
[null,null,"00:00:00",null,null,null,null,null,0]
[null,null,"00:00:00",null,null,null,null,null,0]
[null,null,{"$f":"+B271","v":"00:00:00"},null,null,null,null,null,0]
[null,null,"00:00:00",null,null,null,null,null,0]
[null,null,"00:00:00",null,null,null,null,null,0]
[null,null,"00:00:00",null,null,null,null,null,0]
[null,null,"00:00:00",null,null,null,null,null,0]
[null,null,"00:00:00",null,null,null,null,null,0]
[null,null,"00:00:00",null,null,null,null,null,0]
[null,null,"00:00:00",null,null,null,null,null,0]
[null,null,"00:00:00",null,null,null,null,null,0]
[null,null,"00:00:00",null,null,null,null,null,0]
[null,null,"00:00:00",null,null,null,null,null,0]
[null,null,"00:00:00",null,null,null,null,null,0]
[null,null,"00:00:00",null,null,null,null,null,0]
[null,null,"00:00:00",null,null,null,null,null,0]
[null,null,"00:00:00",null,null,null,null,null,0]
[null,null,"00:00:00",null,null,null,null,null,0]
[null,null,"00:00:00",null,null,null,null,null,0]
[null,null,"00:00:00",null,null,null,null,null,0]
[null,null,"00:00:00",null,null,null,null,null,0]
[null,null,"00:00:00",null,null,null,null,null,0]
[null,null,"00:00:00",null,null,null,null,null,0]
[null,null,"00:00:00",null,null,null,null,null,0]
[null,null,"00:00:00",null,null,null,null,null,0]
[null,null,"00:00:00",null,null,null,null,null,0]
[null,null,"00:00:00",null,null,null,null,null,0]
[null,null,"00:00:00",null,null,null,null,null,0]
[null,null,"00:00:00",null,null,null,null,null,0]
[null,null,{"$f":"+B298","v":"00:00:00"},null,null,null,null,null,0]
[null,null,"00:00:00",null,null,null,null,null,0]
[null,null,"00:00:00",null,null,null,null,null,0]
[null,null,"00:00:00",null,null,null,null,null,0]
[null,null,"00:00:00",null,null,null,null,null,0]
[null,null,"00:00:00",null,null,null,null,null,0]
[null,null,"00:00:00",null,null,null,null,null,0]
[null,null,"00:00:00",null,null,null,null,null,0]
[null,null,"00:00:00",null,null,null,null,null,0]
[null,null,"00:00:00",null,null,null,null,null,0]
[null,null,"00:00:00",null,null,null,null,null,0]
[null,null,"00:00:00",null,null,null,null,null,0]
[null,null,"00:00:00",null,null,null,null,null,0]
[null,null,"00:00:00",null,null,null,null,null,0]
[null,null,"00:00:00",null,null,null,null,null,0]
[null,null,"00:00:00",null,null,null,null,null,0]
[null,null,"00:00:00",null,null,null,null,null,0]
[null,null,"00:00:00",null,null,null,null,null,0]
[null,null,"00:00:00",null,null,null,null,null,0]
[null,null,"00:00:00",null,null,null,null,null,0]
[null,null,"00:00:00",null,null,null,null,null,0]
[null,null,"00:00:00",null,null,null,null,null,0]
[null,null,"00:00:00",null,null,null,null,null,0]
[null,null,"00:00:00",null,null,null,null,null,0]
[null,null,"00:00:00",null,null,null,null,null,0]
[null,null,"00:00:00",null,null,null,null,null,0]
[null,null,"00:00:00",null,null,null,null,null,0]
[null,null,"00:00:00",null,null,null,null,null,0]
[null,null,"00:00:00",null,null,null,null,null,0]
[null,null,"00:00:00",null,null,null,null,null,0]
[null,null,"00:00:00",null,null,null,null,null,0]
[null,null,"00:00:00",null,null,null,null,null,{"$f":"+G329*H329","v":0}]
[null,null,"00:00:00",null,null,null,null,null,0]
[null,null,"00:00:00",null,null,null,null,null,0]
[null,null,"00:00:00",null,null,null,null,null,0]
[null,null,"00:00:00",null,null,null,null,null,0]
[null,null,"00:00:00",null,null,null,null,null,0]
[null,null,"00:00:00",null,null,null,null,null,0]
[null,null,"00:00:00",null,null,null,null,null,0]
[null,null,"00:00:00",null,null,null,null,null,0]
[null,null,"00:00:00",null,null,null,null,null,0]
[null,null,"00:00:00",null,null,null,null,null,0]
[null,null,"00:00:00",null,null,null,null,null,0]
[null,null,"00:00:00",null,null,null,null,null,0]
[null,null,"00:00:00",null,null,null,null,null,0]
[null,null,"00:00:00",null,null,null,null,null,0]
[null,null,"00:00:00",null,null,null,null,null,0]
[null,null,"00:00:00",null,null,null,null,null,0]
[null,null,"00:00:00",null,null,null,null,null,0]
[null,null,"00:00:00",null,null,null,null,null,0]
[null,null,"00:00:00",null,null,null,null,null,0]
[null,null,"00:00:00",null,null,null,null,null,0]
[null,null,"00:00:00",null,null,null,null,null,0]
[null,null,"00:00:00",null,null,null,null,null,0]
[null,null,"00:00:00",null,null,null,null,null,0]
[null,null,"00:00:00",null,null,null,null,null,0]
[null,null,"00:00:00",null,null,null,null,null,0]
[null,null,"00:00:00",null,null,null,null,null,0]
[null,null,"00:00:00",null,null,null,null,null,0]
[null,null,"00:00:00",null,null,null,null,null,0]
[null,null,"00:00:00",null,null,null,null,null,0]
[null,null,"00:00:00",null,null,null,null,null,0]
[null,null,"00:00:00",null,null,null,null,null,0]
[null,null,"00:00:00",null,null,null,null,null,0]
[null,null,{"$f":"+B362","v":"00:00:00"},null,null,null,null,null,0]
[null,null,"00:00:00",null,null,null,null,null,0]
[null,null,"00:00:00",null,null,null,null,null,0]
[null,null,"00:00:00",null,null,null,null,null,0]
[null,null,"00:00:00",null,null,null,null,null,0]
[null,null,"00:00:00",null,null,null,null,null,0]
[null,null,"00:00:00",null,null,null,null,null,0]
[null,null,"00:00:00",null,null,null,null,null,0]
[null,null,"00:00:00",null,null,null,null,null,0]
[null,null,"00:00:00",null,null,null,null,null,0]
[null,null,"00:00:00",null,null,null,null,null,0]
[null,null,"00:00:00",null,null,null,null,null,0]
[null,null,"00:00:00",null,null,null,null,null,0]
[null,null,"00:00:00",null,null,null,null,null,0]
[null,null,"00:00:00",null,null,null,null,null,0]
[null,null,"00:00:00",null,null,null,null,null,0]
[null,null,"00:00:00",null,null,null,null,null,0]
[null,null,"00:00:00",null,null,null,null,null,0]
[null,null,"00:00:00",null,null,null,null,null,0]
[null,null,"00:00:00",null,null,null,null,null,0]
[null,null,"00:00:00",null,null,null,null,null,0]
[null,null,"00:00:00",null,null,null,null,null,0]
[null,null,"00:00:00",null,null,null,null,null,0]
[null,null,"00:00:00",null,null,null,null,null,0]
[null,null,"00:00:00",null,null,null,null,null,0]
[null,null,"00:00:00",null,null,null,null,null,0]
[null,null,"00:00:00",null,null,null,null,null,0]
[null,null,"00:00:00",null,null,null,null,null,0]
[null,null,"00:00:00",null,null,null,null,null,0]
[null,null,"00:00:00",null,null,null,null,null,0]
[null,null,"00:00:00",null,null,null,null,null,0]
[null,null,"00:00:00",null,null,null,null,null,{"$f":"+G393*H393","v":0}]
[null,null,"00:00:00",null,null,null,null,null,0]
[null,null,"00:00:00",null,null,null,null,null,0]
[null,null,"00:00:00",null,null,null,null,null,0]
[null,null,"00:00:00",null,null,null,null,null,0]
[null,null,"00:00:00",null,null,null,null,null,0]
[null,null,"00:00:00",null,null,null,null,null,0]
[null,null,"00:00:00",null,null,null,null,null,0]
[null,null,"00:00:00",null,null,null,null,null,0]
[null,null,"00:00:00",null,null,null,null,null,0]
[null,null,"00:00:00",null,null,null,null,null,0]
[null,null,"00:00:00",null,null,null,null,null,0]
[null,null,"00:00:00",null,null,null,null,null,0]
[null,null,"00:00:00",null,null,null,null,null,0]
[null,null,"00:00:00",null,null,null,null,null,0]
[null,null,"00:00:00",null,null,null,null,null,0]
[null,null,"00:00:00",null,null,null,null,null,0]
[null,null,"00:00:00",null,null,null,null,null,0]
[null,null,"00:00:00",null,null,null,null,null,0]
[null,null,"00:00:00",null,null,null,null,null,0]
[null,null,"00:00:00",null,null,null,null,null,0]
[null,null,"00:00:00",null,null,null,null,null,0]
[null,null,"00:00:00",null,null,null,null,null,0]
[null,null,"00:00:00",null,null,null,null,null,0]
[null,null,"00:00:00",null,null,null,null,null,0]
[null,null,"00:00:00",null,null,null,null,null,0]
[null,null,"00:00:00",null,null,null,null,null,0]
[null,null,"00:00:00",null,null,null,null,null,0]
[null,null,"00:00:00",null,null,null,null,null,0]
[null,null,"00:00:00",null,null,null,null,null,0]
[null,null,"00:00:00",null,null,null,null,null,0]
[null,null,"00:00:00",null,null,null,null,null,0]
[null,null,"00:00:00",null,null,null,null,null,0]
[null,null,{"$f":"+B426","v":"00:00:00"},null,null,null,null,null,0]
[null,null,"00:00:00",null,null,null,null,null,0]
[null,null,"00:00:00",null,null,null,null,null,0]
[null,null,"00:00:00",null,null,null,null,null,0]
[null,null,"00:00:00",null,null,null,null,null,0]
[null,null,"00:00:00",null,null,null,null,null,0]
[null,null,"00:00:00",null,null,null,null,null,0]
[null,null,"00:00:00",null,null,null,null,null,0]
[null,null,"00:00:00",null,null,null,null,null,0]
[null,null,"00:00:00",null,null,null,null,null,0]
[null,null,"00:00:00",null,null,null,null,null,0]
[null,null,"00:00:00",null,null,null,null,null,0]
[null,null,"00:00:00",null,null,null,null,null,0]
[null,null,"00:00:00",null,null,null,null,null,0]
[null,null,"00:00:00",null,null,null,null,null,0]
[null,null,"00:00:00",null,null,null,null,null,0]
[null,null,"00:00:00",null,null,null,null,null,0]
[null,null,"00:00:00",null,null,null,null,null,0]
[null,null,"00:00:00",null,null,null,null,null,0]
[null,null,"00:00:00",null,null,null,null,null,0]
[null,null,"00:00:00",null,null,null,null,null,0]
[null,null,"00:00:00",null,null,null,null,null,0]
[null,null,"00:00:00",null,null,null,null,null,0]
[null,null,"00:00:00",null,null,null,null,null,0]
[null,null,"00:00:00",null,null,null,null,null,0]
[null,null,"00:00:00",null,null,null,null,null,0]
[null,null,"00:00:00",null,null,null,null,null,0]
[null,null,"00:00:00",null,null,null,null,null,0]
[null,null,"00:00:00",null,null,null,null,null,0]
[null,null,"00:00:00",null,null,null,null,null,0]
[null,null,"00:00:00",null,null,null,null,null,0]
[null,null,"00:00:00",null,null,null,null,null,{"$f":"+G457*H457","v":0}]
[null,null,"00:00:00",null,null,null,null,null,0]
[null,null,"00:00:00",null,null,null,null,null,0]
[null,null,"00:00:00",null,null,null,null,null,0]
[null,null,"00:00:00",null,null,null,null,null,0]
[null,null,"00:00:00",null,null,null,null,null,0]
[null,null,"00:00:00",null,null,null,null,null,0]
[null,null,"00:00:00",null,null,null,null,null,0]
[null,null,"00:00:00",null,null,null,null,null,0]
[null,null,"00:00:00",null,null,null,null,null,0]
[null,null,"00:00:00",null,null,null,null,null,0]
[null,null,"00:00:00",null,null,null,null,null,0]
[null,null,"00:00:00",null,null,null,null,null,0]
[null,null,"00:00:00",null,null,null,null,null,0]
[null,null,"00:00:00",null,null,null,null,null,0]
[null,null,"00:00:00",null,null,null,null,null,0]
[null,null,"00:00:00",null,null,null,null,null,0]
[null,null,"00:00:00",null,null,null,null,null,0]
[null,null,"00:00:00",null,null,null,null,null,0]
[null,null,"00:00:00",null,null,null,null,null,0]
[null,null,"00:00:00",null,null,null,null,null,0]
[null,null,"00:00:00",null,null,null,null,null,0]
[null,null,"00:00:00",null,null,null,null,null,0]
[null,null,"00:00:00",null,null,null,null,null,0]
[null,null,"00:00:00",null,null,null,null,null,0]
[null,null,"00:00:00",null,null,null,null,null,0]
[null,null,"00:00:00",null,null,null,null,null,0]
[null,null,"00:00:00",null,null,null,null,null,0]
[null,null,"00:00:00",null,null,null,null,null,0]
[null,null,"00:00:00",null,null,null,null,null,0]
[null,null,"00:00:00",null,null,null,null,null,0]
[null,null,"00:00:00",null,null,null,null,null,0]
[null,null,"00:00:00",null,null,null,null,null,0]
[null,null,{"$f":"+B490","v":"00:00:00"},null,null,null,null,null,0]
[null,null,"00:00:00",null,null,null,null,null,0]
[null,null,"00:00:00",null,null,null,null,null,0]
[null,null,"00:00:00",null,null,null,null,null,0]
[null,null,"00:00:00",null,null,null,null,null,0]
[null,null,"00:00:00",null,null,null,null,null,0]
[null,null,"00:00:00",null,null,null,null,null,0]
[null,null,"00:00:00",null,null,null,null,null,0]
[null,null,"00:00:00",null,null,null,null,null,0]
[null,null,"00:00:00",null,null,null,null,null,0]
[null,null,"00:00:00",null,null,null,null,null,0]
[null,null,"00:00:00",null,null,null,null,null,0]
[null,null,"00:00:00",null,null,null,null,null,0]
[null,null,"00:00:00",null,null,null,null,null,0]
[null,null,"00:00:00",null,null,null,null,null,0]
[null,null,"00:00:00",null,null,null,null,null,0]
[null,null,"00:00:00",null,null,null,null,null,0]
[null,null,"00:00:00",null,null,null,null,null,0]
[null,null,"00:00:00",null,null,null,null,null,0]
[null,null,"00:00:00",null,null,null,null,null,0]
[null,null,"00:00:00",null,null,null,null,null,0]
[null,null,"00:00:00",null,null,null,null,null,0]
[null,null,"00:00:00",null,null,null,null,null,0]
[null,null,"00:00:00",null,null,null,null,null,0]
[null,null,"00:00:00",null,null,null,null,null,0]
[null,null,"00:00:00",null,null,null,null,null,0]
[null,null,"00:00:00",null,null,null,null,null,0]
[null,null,"00:00:00",null,null,null,null,null,0]
[null,null,"00:00:00",null,null,null,null,null,0]
[null,null,"00:00:00",null,null,null,null,null,0]
[null,null,"00:00:00",null,null,null,null,null,0]
[null,null,"00:00:00",null,null,null,null,null,{"$f":"+G521*H521","v":0}]
[null,null,"00:00:00",null,null,null,null,null,0]
[null,null,"00:00:00",null,null,null,null,null,0]
[null,null,"00:00:00",null,null,null,null,null,0]
[null,null,"00:00:00",null,null,null,null,null,0]
[null,null,"00:00:00",null,null,null,null,null,0]
[null,null,"00:00:00",null,null,null,null,null,0]
[null,null,"00:00:00",null,null,null,null,null,0]
[null,null,"00:00:00",null,null,null,null,null,0]
[null,null,"00:00:00",null,null,null,null,null,0]
[null,null,"00:00:00",null,null,null,null,null,0]
[null,null,"00:00:00",null,null,null,null,null,0]
[null,null,"00:00:00",null,null,null,null,null,0]
[null,null,"00:00:00",null,null,null,null,null,0]
[null,null,"00:00:00",null,null,null,null,null,0]
[null,null,"00:00:00",null,null,null,null,null,0]
[null,null,"00:00:00",null,null,null,null,null,0]
[null,null,"00:00:00",null,null,null,null,null,0]
[null,null,"00:00:00",null,null,null,null,null,0]
[null,null,"00:00:00",null,null,null,null,null,0]
[null,null,"00:00:00",null,null,null,null,null,0]
[null,null,"00:00:00",null,null,null,null,null,0]
[null,null,"00:00:00",null,null,null,null,null,0]
[null,null,"00:00:00",null,null,null,null,null,0]
[null,null,"00:00:00",null,null,null,null,null,0]
[null,null,"00:00:00",null,null,null,null,null,0]
[null,null,"00:00:00",null,null,null,null,null,0]
[null,null,"00:00:00",null,null,null,null,null,0]
[null,null,"00:00:00",null,null,null,null,null,0]
[null,null,"00:00:00",null,null,null,null,null,0]
[null,null,"00:00:00",null,null,null,null,null,0]
[null,null,"00:00:00",null,null,null,null,null,0]
[null,null,"00:00:00",null,null,null,null,null,0]
[null,null,{"$f":"+B554","v":"00:00:00"},null,null,null,null,null,0]
[null,null,"00:00:00",null,null,null,null,null,0]
[null,null,"00:00:00",null,null,null,null,null,0]
[null,null,"00:00:00",null,null,null,null,null,0]
[null,null,"00:00:00",null,null,null,null,null,0]
[null,null,"00:00:00",null,null,null,null,null,0]
[null,null,"00:00:00",null,null,null,null,null,0]
[null,null,"00:00:00",null,null,null,null,null,0]
[null,null,"00:00:00",null,null,null,null,null,0]
[null,null,"00:00:00",null,null,null,null,null,0]
[null,null,"00:00:00",null,null,null,null,null,0]
[null,null,"00:00:00",null,null,null,null,null,0]
[null,null,"00:00:00",null,null,null,null,null,0]
[null,null,"00:00:00",null,null,null,null,null,0]
[null,null,"00:00:00",null,null,null,null,null,0]
[null,null,"00:00:00",null,null,null,null,null,0]
[null,null,"00:00:00",null,null,null,null,null,0]
[null,null,"00:00:00",null,null,null,null,null,0]
[null,null,"00:00:00",null,null,null,null,null,0]
[null,null,"00:00:00",null,null,null,null,null,0]
[null,null,"00:00:00",null,null,null,null,null,0]
[null,null,"00:00:00",null,null,null,null,null,0]
[null,null,"00:00:00",null,null,null,null,null,0]
[null,null,"00:00:00",null,null,null,null,null,0]
[null,null,"00:00:00",null,null,null,null,null,0]
[null,null,"00:00:00",null,null,null,null,null,0]
[null,null,"00:00:00",null,null,null,null,null,0]
[null,null,"00:00:00",null,null,null,null,null,0]
[null,null,"00:00:00",null,null,null,null,null,0]
[null,null,"00:00:00",null,null,null,null,null,0]
[null,null,"00:00:00",null,null,null,null,null,0]
[null,null,"00:00:00",null,null,null,null,null,{"$f":"+G585*H585","v":0}]
[null,null,"00:00:00",null,null,null,null,null,0]
[null,null,"00:00:00",null,null,null,null,null,0]
[null,null,"00:00:00",null,null,null,null,null,0]
[null,null,"00:00:00",null,null,null,null,null,0]
[null,null,"00:00:00",null,null,null,null,null,0]
[null,null,"00:00:00",null,null,null,null,null,0]
[null,null,"00:00:00",null,null,null,null,null,0]
[null,null,"00:00:00",null,null,null,null,null,0]
[null,null,"00:00:00",null,null,null,null,null,0]
[null,null,"00:00:00",null,null,null,null,null,0]
[null,null,"00:00:00",null,null,null,null,null,0]
[null,null,"00:00:00",null,null,null,null,null,0]
[null,null,"00:00:00",null,null,null,null,null,0]
[null,null,"00:00:00",null,null,null,null,null,0]
[null,null,"00:00:00",null,null,null,null,null,0]
[null,null,"00:00:00",null,null,null,null,null,0]
[null,null,"00:00:00",null,null,null,null,null,0]
[null,null,"00:00:00",null,null,null,null,null,0]
[null,null,"00:00:00",null,null,null,null,null,0]
[null,null,"00:00:00",null,null,null,null,null,0]
[null,null,"00:00:00",null,null,null,null,null,0]
[null,null,"00:00:00",null,null,null,null,null,0]
[null,null,"00:00:00",null,null,null,null,null,0]
[null,null,"00:00:00",null,null,null,null,null,0]
[null,null,"00:00:00",null,null,null,null,null,0]
[null,null,"00:00:00",null,null,null,null,null,0]
[null,null,"00:00:00",null,null,null,null,null,0]
[null,null,"00:00:00",null,null,null,null,null,0]
[null,null,"00:00:00",null,null,null,null,null,0]
[null,null,"00:00:00",null,null,null,null,null,0]
[null,null,"00:00:00",null,null,null,null,null,0]
[null,null,"00:00:00",null,null,null,null,null,0]
[null,null,{"$f":"+B618","v":"00:00:00"},null,null,null,null,null,0]
[null,null,"00:00:00",null,null,null,null,null,0]
[null,null,"00:00:00",null,null,null,null,null,0]
[null,null,"00:00:00",null,null,null,null,null,0]
[null,null,"00:00:00",null,null,null,null,null,0]
[null,null,"00:00:00",null,null,null,null,null,0]
[null,null,"00:00:00",null,null,null,null,null,0]
[null,null,"00:00:00",null,null,null,null,null,0]
[null,null,"00:00:00",null,null,null,null,null,0]
[null,null,"00:00:00",null,null,null,null,null,0]
[null,null,"00:00:00",null,null,null,null,null,0]
[null,null,"00:00:00",null,null,null,null,null,0]
[null,null,"00:00:00",null,null,null,null,null,0]
[null,null,"00:00:00",null,null,null,null,null,0]
[null,null,"00:00:00",null,null,null,null,null,0]
[null,null,"00:00:00",null,null,null,null,null,0]
[null,null,"00:00:00",null,null,null,null,null,0]
[null,null,"00:00:00",null,null,null,null,null,0]
[null,null,"00:00:00",null,null,null,null,null,0]
[null,null,"00:00:00",null,null,null,null,null,0]
[null,null,"00:00:00",null,null,null,null,null,0]
[null,null,"00:00:00",null,null,null,null,null,0]
[null,null,"00:00:00",null,null,null,null,null,0]
[null,null,"00:00:00",null,null,null,null,null,0]
[null,null,"00:00:00",null,null,null,null,null,0]
[null,null,"00:00:00",null,null,null,null,null,0]
[null,null,"00:00:00",null,null,null,null,null,0]
[null,null,"00:00:00",null,null,null,null,null,0]
[null,null,"00:00:00",null,null,null,null,null,0]
[null,null,"00:00:00",null,null,null,null,null,0]
[null,null,"00:00:00",null,null,null,null,null,0]
[null,null,"00:00:00",null,null,null,null,null,{"$f":"+G649*H649","v":0}]
[null,null,"00:00:00",null,null,null,null,null,0]
[null,null,"00:00:00",null,null,null,null,null,0]
[null,null,"00:00:00",null,null,null,null,null,0]
[null,null,"00:00:00",null,null,null,null,null,0]
[null,null,"00:00:00",null,null,null,null,null,0]
[null,null,"00:00:00",null,null,null,null,null,0]
[null,null,"00:00:00",null,null,null,null,null,0]
[null,null,"00:00:00",null,null,null,null,null,0]
[null,null,"00:00:00",null,null,null,null,null,0]
[null,null,"00:00:00",null,null,null,null,null,0]
[null,null,"00:00:00",null,null,null,null,null,0]
[null,null,"00:00:00",null,null,null,null,null,0]
[null,null,"00:00:00",null,null,null,null,null,0]
[null,null,"00:00:00",null,null,null,null,null,0]
[null,null,"00:00:00",null,null,null,null,null,0]
[null,null,"00:00:00",null,null,null,null,null,0]
[null,null,"00:00:00",null,null,null,null,null,0]
[null,null,"00:00:00",null,null,null,null,null,0]
[null,null,"00:00:00",null,null,null,null,null,0]
[null,null,"00:00:00",null,null,null,null,null,0]
[null,null,"00:00:00",null,null,null,null,null,0]
[null,null,"00:00:00",null,null,null,null,null,0]
[null,null,"00:00:00",null,null,null,null,null,0]
[null,null,"00:00:00",null,null,null,null,null,0]
[null,null,"00:00:00",null,null,null,null,null,0]
[null,null,"00:00:00",null,null,null,null,null,0]
[null,null,"00:00:00",null,null,null,null,null,0]
[null,null,"00:00:00",null,null,null,null,null,0]
[null,null,"00:00:00",null,null,null,null,null,0]
[null,null,"00:00:00",null,null,null,null,null,0]
[null,null,"00:00:00",null,null,null,null,null,0]
[null,null,"00:00:00",null,null,null,null,null,0]
[null,null,{"$f":"+B682","v":"00:00:00"},null,null,null,null,null,0]
[null,null,"00:00:00",null,null,null,null,null,0]
[null,null,"00:00:00",null,null,null,null,null,0]
[null,null,"00:00:00",null,null,null,null,null,0]
[null,null,"00:00:00",null,null,null,null,null,0]
[null,null,"00:00:00",null,null,null,null,null,0]
[null,null,"00:00:00",null,null,null,null,null,0]
[null,null,"00:00:00",null,null,null,null,null,0]
[null,null,"00:00:00",null,null,null,null,null,0]
[null,null,"00:00:00",null,null,null,null,null,0]
[null,null,"00:00:00",null,null,null,null,null,0]
[null,null,"00:00:00",null,null,null,null,null,0]
[null,null,"00:00:00",null,null,null,null,null,0]
[null,null,"00:00:00",null,null,null,null,null,0]
[null,null,"00:00:00",null,null,null,null,null,0]
[null,null,"00:00:00",null,null,null,null,null,0]
[null,null,"00:00:00",null,null,null,null,null,0]
[null,null,"00:00:00",null,null,null,null,null,0]
[null,null,"00:00:00",null,null,null,null,null,0]
[null,null,"00:00:00",null,null,null,null,null,0]
[null,null,"00:00:00",null,null,null,null,null,0]
[null,null,"00:00:00",null,null,null,null,null,0]
[null,null,"00:00:00",null,null,null,null,null,0]
[null,null,"00:00:00",null,null,null,null,null,0]
[null,null,"00:00:00",null,null,null,null,null,0]
[null,null,"00:00:00",null,null,null,null,null,0]
[null,null,"00:00:00",null,null,null,null,null,0]
[null,null,"00:00:00",null,null,null,null,null,0]
[null,null,"00:00:00",null,null,null,null,null,0]
[null,null,"00:00:00",null,null,null,null,null,0]
[null,null,"00:00:00",null,null,null,null,null,0]
[null,null,"00:00:00",null,null,null,null,null,{"$f":"+G713*H713","v":0}]
[null,null,"00:00:00",null,null,null,null,null,0]
[null,null,"00:00:00",null,null,null,null,null,0]
[null,null,"00:00:00",null,null,null,null,null,0]
[null,null,"00:00:00",null,null,null,null,null,0]
[null,null,"00:00:00",null,null,null,null,null,0]
[null,null,"00:00:00",null,null,null,null,null,0]
[null,null,"00:00:00",null,null,null,null,null,0]
[null,null,"00:00:00",null,null,null,null,null,0]
[null,null,"00:00:00",null,null,null,null,null,0]
[null,null,"00:00:00",null,null,null,null,null,0]
[null,null,"00:00:00",null,null,null,null,null,0]
[null,null,"00:00:00",null,null,null,null,null,0]
[null,null,"00:00:00",null,null,null,null,null,0]
[null,null,"00:00:00",null,null,null,null,null,0]
[null,null,"00:00:00",null,null,null,null,null,0]
[null,null,"00:00:00",null,null,null,null,null,0]
[null,null,"00:00:00",null,null,null,null,null,0]
[null,null,"00:00:00",null,null,null,null,null,0]
[null,null,"00:00:00",null,null,null,null,null,0]
[null,null,"00:00:00",null,null,null,null,null,0]
[null,null,"00:00:00",null,null,null,null,null,0]
[null,null,"00:00:00",null,null,null,null,null,0]
[null,null,"00:00:00",null,null,null,null,null,0]
[null,null,"00:00:00",null,null,null,null,null,0]
[null,null,"00:00:00",null,null,null,null,null,0]
[null,null,"00:00:00",null,null,null,null,null,0]
[null,null,"00:00:00",null,null,null,null,null,0]
[null,null,"00:00:00",null,null,null,null,null,0]
[null,null,"00:00:00",null,null,null,null,null,0]
[null,null,"00:00:00",null,null,null,null,null,0]
[null,null,"00:00:00",null,null,null,null,null,0]
[null,null,"00:00:00",null,null,null,null,null,0]
[null,null,{"$f":"+B746","v":"00:00:00"},null,null,null,null,null,0]
[null,null,"00:00:00",null,null,null,null,null,0]
[null,null,"00:00:00",null,null,null,null,null,0]
[null,null,"00:00:00",null,null,null,null,null,0]
[null,null,"00:00:00",null,null,null,null,null,0]
[null,null,"00:00:00",null,null,null,null,null,0]
[null,null,"00:00:00",null,null,null,null,null,0]
[null,null,"00:00:00",null,null,null,null,null,0]
[null,null,"00:00:00",null,null,null,null,null,0]
[null,null,"00:00:00",null,null,null,null,null,0]
[null,null,"00:00:00",null,null,null,null,null,0]
[null,null,"00:00:00",null,null,null,null,null,0]
[null,null,"00:00:00",null,null,null,null,null,0]
[null,null,"00:00:00",null,null,null,null,null,0]
[null,null,"00:00:00",null,null,null,null,null,0]
[null,null,"00:00:00",null,null,null,null,null,0]
[null,null,"00:00:00",null,null,null,null,null,0]
[null,null,"00:00:00",null,null,null,null,null,0]
[null,null,"00:00:00",null,null,null,null,null,0]
[null,null,"00:00:00",null,null,null,null,null,0]
[null,null,"00:00:00",null,null,null,null,null,0]
[null,null,"00:00:00",null,null,null,null,null,0]
[null,null,"00:00:00",null,null,null,null,null,0]
[null,null,"00:00:00",null,null,null,null,null,0]
[null,null,"00:00:00",null,null,null,null,null,0]
[null,null,"00:00:00",null,null,null,null,null,0]
[null,null,"00:00:00",null,null,null,null,null,0]
[null,null,"00:00:00",null,null,null,null,null,0]
[null,null,"00:00:00",null,null,null,null,null,0]
[null,null,"00:00:00",null,null,null,null,null,0]
[null,null,"00:00:00",null,null,null,null,null,0]
[null,null,"00:00:00",null,null,null,null,null,{"$f":"+G777*H777","v":0}]
[null,null,"00:00:00",null,null,null,null,null,0]
[null,null,"00:00:00",null,null,null,null,null,0]
[null,null,"00:00:00",null,null,null,null,null,0]
[null,null,"00:00:00",null,null,null,null,null,0]
[null,null,"00:00:00",null,null,null,null,null,0]
[null,null,"00:00:00",null,null,null,null,null,0]
[null,null,"00:00:00",null,null,null,null,null,0]
[null,null,"00:00:00",null,null,null,null,null,0]
[null,null,"00:00:00",null,null,null,null,null,0]
[null,null,"00:00:00",null,null,null,null,null,0]
[null,null,"00:00:00",null,null,null,null,null,0]
[null,null,"00:00:00",null,null,null,null,null,0]
[null,null,"00:00:00",null,null,null,null,null,0]
[null,null,"00:00:00",null,null,null,null,null,0]
[null,null,"00:00:00",null,null,null,null,null,0]
[null,null,"00:00:00",null,null,null,null,null,0]
[null,null,"00:00:00",null,null,null,null,null,0]
[null,null,"00:00:00",null,null,null,null,null,0]
[null,null,"00:00:00",null,null,null,null,null,0]
[null,null,"00:00:00",null,null,null,null,null,0]
[null,null,"00:00:00",null,null,null,null,null,0]
[null,null,"00:00:00",null,null,null,null,null,0]
[null,null,"00:00:00",null,null,null,null,null,0]
[null,null,"00:00:00",null,null,null,null,null,0]
[null,null,"00:00:00",null,null,null,null,null,0]
[null,null,"00:00:00",null,null,null,null,null,0]
[null,null,"00:00:00",null,null,null,null,null,0]
[null,null,"00:00:00",null,null,null,null,null,0]
[null,null,"00:00:00",null,null,null,null,null,0]
[null,null,"00:00:00",null,null,null,null,null,0]
[null,null,"00:00:00",null,null,null,null,null,0]
[null,null,"00:00:00",null,null,null,null,null,0]
[null,null,{"$f":"+B810","v":"00:00:00"},null,null,null,null,null,0]
[null,null,"00:00:00",null,null,null,null,null,0]
[null,null,"00:00:00",null,null,null,null,null,0]
[null,null,"00:00:00",null,null,null,null,null,0]
[null,null,"00:00:00",null,null,null,null,null,0]
[null,null,"00:00:00",null,null,null,null,null,0]
[null,null,"00:00:00",null,null,null,null,null,0]
[null,null,"00:00:00",null,null,null,null,null,0]
[null,null,"00:00:00",null,null,null,null,null,0]
[null,null,"00:00:00",null,null,null,null,null,0]
[null,null,"00:00:00",null,null,null,null,null,0]
[null,null,"00:00:00",null,null,null,null,null,0]
[null,null,"00:00:00",null,null,null,null,null,0]
[null,null,"00:00:00",null,null,null,null,null,0]
[null,null,"00:00:00",null,null,null,null,null,0]
[null,null,"00:00:00",null,null,null,null,null,0]
[null,null,"00:00:00",null,null,null,null,null,0]
[null,null,"00:00:00",null,null,null,null,null,0]
[null,null,"00:00:00",null,null,null,null,null,0]
[null,null,"00:00:00",null,null,null,null,null,0]
[null,null,"00:00:00",null,null,null,null,null,0]
[null,null,"00:00:00",null,null,null,null,null,0]
[null,null,"00:00:00",null,null,null,null,null,0]
[null,null,"00:00:00",null,null,null,null,null,0]
[null,null,"00:00:00",null,null,null,null,null,0]
[null,null,"00:00:00",null,null,null,null,null,0]
[null,null,"00:00:00",null,null,null,null,null,0]
[null,null,"00:00:00",null,null,null,null,null,0]
[null,null,"00:00:00",null,null,null,null,null,0]
[null,null,"00:00:00",null,null,null,null,null,0]
[null,null,"00:00:00",null,null,null,null,null,0]
[null,null,"00:00:00",null,null,null,null,null,{"$f":"+G841*H841","v":0}]
[null,null,"00:00:00",null,null,null,null,null,0]
[null,null,"00:00:00",null,null,null,null,null,0]
[null,null,"00:00:00",null,null,null,null,null,0]
[null,null,"00:00:00",null,null,null,null,null,0]
[null,null,"00:00:00",null,null,null,null,null,0]
[null,null,"00:00:00",null,null,null,null,null,0]
[null,null,"00:00:00",null,null,null,null,null,0]
[null,null,"00:00:00",null,null,null,null,null,0]
[null,null,"00:00:00",null,null,null,null,null,0]
[null,null,"00:00:00",null,null,null,null,null,0]
[null,null,"00:00:00",null,null,null,null,null,0]
[null,null,"00:00:00",null,null,null,null,null,0]
[null,null,"00:00:00",null,null,null,null,null,0]
[null,null,"00:00:00",null,null,null,null,null,0]
[null,null,"00:00:00",null,null,null,null,null,0]
[null,null,"00:00:00",null,null,null,null,null,0]
[null,null,"00:00:00",null,null,null,null,null,0]
[null,null,"00:00:00",null,null,null,null,null,0]
[null,null,"00:00:00",null,null,null,null,null,0]
[null,null,"00:00:00",null,null,null,null,null,0]
[null,null,"00:00:00",null,null,null,null,null,0]
[null,null,"00:00:00",null,null,null,null,null,0]
[null,null,"00:00:00",null,null,null,null,null,0]
[null,null,"00:00:00",null,null,null,null,null,0]
[null,null,"00:00:00",null,null,null,null,null,0]
[null,null,"00:00:00",null,null,null,null,null,0]
[null,null,"00:00:00",null,null,null,null,null,0]
[null,null,"00:00:00",null,null,null,null,null,0]
[null,null,"00:00:00",null,null,null,null,null,0]
[null,null,"00:00:00",null,null,null,null,null,0]
[null,null,"00:00:00",null,null,null,null,null,0]
[null,null,"00:00:00",null,null,null,null,null,0]
[null,null,{"$f":"+B874","v":"00:00:00"},null,null,null,null,null,0]
[null,null,"00:00:00",null,null,null,null,null,0]
[null,null,"00:00:00",null,null,null,null,null,0]
[null,null,"00:00:00",null,null,null,null,null,0]
[null,null,"00:00:00",null,null,null,null,null,0]
[null,null,"00:00:00",null,null,null,null,null,0]
[null,null,"00:00:00",null,null,null,null,null,0]
[null,null,"00:00:00",null,null,null,null,null,0]
[null,null,"00:00:00",null,null,null,null,null,0]
[null,null,"00:00:00",null,null,null,null,null,0]
[null,null,"00:00:00",null,null,null,null,null,0]
[null,null,"00:00:00",null,null,null,null,null,0]
[null,null,"00:00:00",null,null,null,null,null,0]
[null,null,"00:00:00",null,null,null,null,null,0]
[null,null,"00:00:00",null,null,null,null,null,0]
[null,null,"00:00:00",null,null,null,null,null,0]
[null,null,"00:00:00",null,null,null,null,null,0]
[null,null,"00:00:00",null,null,null,null,null,0]
[null,null,"00:00:00",null,null,null,null,null,0]
[null,null,"00:00:00",null,null,null,null,null,0]
[null,null,"00:00:00",null,null,null,null,null,0]
[null,null,"00:00:00",null,null,null,null,null,0]
[null,null,"00:00:00",null,null,null,null,null,0]
[null,null,"00:00:00",null,null,null,null,null,0]
[null,null,"00:00:00",null,null,null,null,null,0]
[null,null,"00:00:00",null,null,null,null,null,0]
[null,null,"00:00:00",null,null,null,null,null,0]
[null,null,"00:00:00",null,null,null,null,null,0]
[null,null,"00:00:00",null,null,null,null,null,0]
[null,null,"00:00:00",null,null,null,null,null,0]
[null,null,"00:00:00",null,null,null,null,null,0]
[null,null,"00:00:00",null,null,null,null,null,{"$f":"+G905*H905","v":0}]
[null,null,"00:00:00",null,null,null,null,null,0]
[null,null,"00:00:00",null,null,null,null,null,0]
[null,null,"00:00:00",null,null,null,null,null,0]
[null,null,"00:00:00",null,null,null,null,null,0]
[null,null,"00:00:00",null,null,null,null,null,0]
[null,null,"00:00:00",null,null,null,null,null,0]
[null,null,"00:00:00",null,null,null,null,null,0]
[null,null,"00:00:00",null,null,null,null,null,0]
[null,null,"00:00:00",null,null,null,null,null,0]
[null,null,"00:00:00",null,null,null,null,null,0]
[null,null,"00:00:00",null,null,null,null,null,0]
[null,null,"00:00:00",null,null,null,null,null,0]
[null,null,"00:00:00",null,null,null,null,null,0]
[null,null,"00:00:00",null,null,null,null,null,0]
[null,null,"00:00:00",null,null,null,null,null,0]
[null,null,"00:00:00",null,null,null,null,null,0]
[null,null,"00:00:00",null,null,null,null,null,0]
[null,null,"00:00:00",null,null,null,null,null,0]
[null,null,"00:00:00",null,null,null,null,null,0]
[null,null,"00:00:00",null,null,null,null,null,0]
[null,null,"00:00:00",null,null,null,null,null,0]
[null,null,"00:00:00",null,null,null,null,null,0]
[null,null,"00:00:00",null,null,null,null,null,0]
[null,null,"00:00:00",null,null,null,null,null,0]
[null,null,"00:00:00",null,null,null,null,null,0]
[null,null,"00:00:00",null,null,null,null,null,0]
[null,null,"00:00:00",null,null,null,null,null,0]
[null,null,"00:00:00",null,null,null,null,null,0]
[null,null,"00:00:00",null,null,null,null,null,0]
[null,null,"00:00:00",null,null,null,null,null,0]
[null,null,"00:00:00",null,null,null,null,null,0]
[null,null,"00:00:00",null,null,null,null,null,0]
[null,null,{"$f":"+B938","v":"00:00:00"},null,null,null,null,null,0]
[null,null,"00:00:00",null,null,null,null,null,0]
[null,null,"00:00:00",null,null,null,null,null,0]
[null,null,"00:00:00",null,null,null,null,null,0]
[null,null,"00:00:00",null,null,null,null,null,0]
[null,null,"00:00:00",null,null,null,null,null,0]
[null,null,"00:00:00",null,null,null,null,null,0]
[null,null,"00:00:00",null,null,null,null,null,0]
[null,null,"00:00:00",null,null,null,null,null,0]
[null,null,"00:00:00",null,null,null,null,null,0]
[null,null,"00:00:00",null,null,null,null,null,0]
[null,null,"00:00:00",null,null,null,null,null,0]
[null,null,"00:00:00",null,null,null,null,null,0]
[null,null,"00:00:00",null,null,null,null,null,0]
[null,null,"00:00:00",null,null,null,null,null,0]
[null,null,"00:00:00",null,null,null,null,null,0]
[null,null,"00:00:00",null,null,null,null,null,0]
[null,null,"00:00:00",null,null,null,null,null,0]
[null,null,"00:00:00",null,null,null,null,null,0]
[null,null,"00:00:00",null,null,null,null,null,0]
[null,null,"00:00:00",null,null,null,null,null,0]
[null,null,"00:00:00",null,null,null,null,null,0]
[null,null,"00:00:00",null,null,null,null,null,0]
[null,null,"00:00:00",null,null,null,null,null,0]
[null,null,"00:00:00",null,null,null,null,null,0]
[null,null,"00:00:00",null,null,null,null,null,0]
[null,null,"00:00:00",null,null,null,null,null,0]
[null,null,"00:00:00",null,null,null,null,null,0]
[null,null,"00:00:00",null,null,null,null,null,0]
[null,null,"00:00:00",null,null,null,null,null,0]
[null,null,"00:00:00",null,null,null,null,null,0]
[null,null,"00:00:00",null,null,null,null,null,{"$f":"+G969*H969","v":0}]
[null,null,"00:00:00",null,null,null,null,null,0]
[null,null,"00:00:00",null,null,null,null,null,0]
[null,null,"00:00:00",null,null,null,null,null,0]
[null,null,"00:00:00",null,null,null,null,null,0]
[null,null,"00:00:00",null,null,null,null,null,0]
[null,null,"00:00:00",null,null,null,null,null,0]